[Event "Romanian-ch Youth Girls U20 2024"]
[Site "Eforie Nord"]
[Date "2024.04.17"]
[Round "6.2"]
[White "Obada, Ema"]
[Black "Marin, Alexia-Iuliana"]
[Result "1-0"]
[ECO "C41"]
[WhiteElo "1992"]
[BlackElo "1573"]
[Annotator "TA"]
[PlyCount "66"]
[EventDate "2024.04.10"]
[EventType "swiss"]
[EventCountry "ROU"]
[SourceTitle "playchess.com"]
[Source "ChessBase"]
[SourceQuality "1"]
[TimeControl "5400+30"]

{[%evp 22,66,27,9,50,35,23,11,76,81,75,41,35,41,186,21,47,34,38,22,62,52,304,310,336,214,222,229,225,231,216,189,219,223,270,267,327,335,316,333,329,320,355,362,533,556,1746]} 1. e4 {[%emt 0:00:03]} e5 {[%emt 1:31:00]} 2. Nf3 {[%emt 1:31:27]} d6 {[%emt 0:00:00]} 3. d4 {[%emt 0:00:00]} exd4 {[%emt 0:00:00]} 4. Nxd4 {[%emt 0:00:00]} Nf6 {[%emt 0:00:00]} 5. Nc3 {[%emt 0:00:00]} Be7 {[%emt 0:00:00]} 6. Bc4 {[%emt 0:00:00]} O-O {[%emt 0:00:00]} 7. O-O {[%emt 0:00:00]} Nxe4 {[%emt 0:00:00]} 8. Nxe4 {[%emt 0:00:00]} d5 {[%emt 0:03:30]} 9. Bd3 dxe4 {[%emt 0:00:00]} 10. Bxe4 {[%emt 0:00:00]} Nd7 {[%emt 0:00:00]} 11. c3 {[%emt 0:00:00]} Nf6 {[%emt 0:00:00]} 12. Bc2 {[%emt 0:00:00]} c6 {[%emt 0:00:00]} 13. h3 {[%emt 0:00:00]} Re8 {[%emt 0:00:00]} 14. Qf3 {[%emt 0:00:00]} Qc7 {[%emt 0:00:00]} (14... Bc5 $11) 15. Re1 $16 {[%emt 0:00:00]} Bd7 {[%emt 0:00:00]} 16. Bf4 {[%emt 0:00:00] White is much more active.} Bd6 {[%emt 0:00:00]} 17. Bg5 {[%emt 0:00:00]} Be5 {[%emt 0:00:00] [#]} (17... Nd5 $14) 18. Nf5 $2 {[%emt 0:00:00]} (18. Qd3 $1 $18 {Threatens to win with Bxf6.} g6 19. Rxe5 Qxe5 20. Nf3) 18... Bxf5 {[%emt 0:00:00]} 19. Qxf5 {[%emt 0:00:00] And now Bxf6 would win.} g6 {[%emt 0:00:00]} 20. Qf3 {[%emt 0:00:00]} Nd5 {[%emt 0:00:00]} (20... Kg7 {is interesting.} 21. g3 Qa5 22. h4 Qd5) 21. Bb3 $36 {[%emt 0:00:00][%mdl 2048] White is more active.} Nf4 $2 {[%emt 0:00:00][%mdl 8192] [#]} (21... Bf4 $14 22. Bh4 h6) 22. Rxe5 $1 $18 {[%emt 0:00:00][%mdl 512]} Nxh3+ {[%emt 0:00:00]} (22... Qxe5 23. Bxf4) 23. gxh3 {[%emt 0:00:00][%cal Of3f6] Intending Qf6! and mate.} Rxe5 {[%emt 0:00:00]} 24. Bf4 {[%emt 0:00:00]} Rf5 {[%emt 0:00:00]} 25. Bxc7 {[%emt 0:00:00] A strong pair of Bishops.} Rxf3 {[%emt 0:00:00]} 26. Kg2 {[%emt 0:00:00]} Rf5 {[%emt 0:00:00]} 27. Re1 {[%emt 0:00:00] Against Re8} Rg5+ {[%emt 0:02:03]} 28. Bg3 {[%emt 0:00:00]} h5 {[%emt 0:01:23]} 29. h4 {[%emt 0:00:00]} Rf5 {[%emt 0:01:06]} 30. Re7 {[%emt 0:00:00]} b6 {[%emt 0:03:09]} 31. Rc7 {[%emt 0:00:00]} c5 {[%emt 0:00:46]} 32. Bc2 {[%emt 0:00:00]} Rd5 {[%emt 0:00:33]} (32... Rf6 {was called for.} 33. Ba4 Re6) 33. Be4 {[%emt 0:00:00]} Rd6 {[%emt 0:03:30] Weighted Error Value: White=0.26 (precise) /Black=0.56.  Loses game:     	---       	Black=1      Missed win:     	White=1     	---        Mistake:       	---       	Black=3      Inaccurate:     	White=2     	Black=3      OK:         	White=9     	Black=5      Best:        	White=1     	Black=3      Brilliant:      	White=1     	---} 1-0

[Event "Romanian-ch Youth Girls U20 2024"]
[Site "Eforie Nord"]
[Date "2024.04.18"]
[Round "7.1"]
[White "Patru, Alexandra-Ioana"]
[Black "Obada, Ema"]
[Result "0-1"]
[ECO "A46"]
[WhiteElo "1838"]
[BlackElo "1992"]
[Annotator "TA"]
[PlyCount "96"]
[EventDate "2024.04.10"]
[EventType "swiss"]
[EventCountry "ROU"]
[SourceTitle "playchess.com"]
[Source "ChessBase"]
[SourceQuality "1"]
[TimeControl "5400+30"]

{[%evp 9,96,0,7,0,3,0,30,28,35,10,16,0,7,0,0,0,3,0,4,-18,-12,-9,0,-4,0,0,0,0,0,0,2,-16,-14,-24,-36,-42,-44,-44,-46,-51,-42,-70,-82,-85,-85,-99,-29,-114,-88,-135,-115,-166,-164,-160,-145,-177,-174,-199,-163,-173,-185,-204,-201,-222,-215,-214,-214,-214,-200,-29952,-29951,-12837,-12826,-6218,-6291,-6170,-5285,-29974,-29952,-10634,-6170,-29986,-29987,-29987,-29988,-29989,-29988,-29990,-29991]} 1. d4 {[%emt 0:02:43]} Nf6 {[%emt 0:00:07]} 2. Nf3 {[%emt 0:00:06]} e6 {[%emt 0:00:05]} 3. g3 {[%emt 0:00:06]} d5 {[%emt 0:00:06]} 4. Bg2 {[%emt 0:00:05]} b5 {[%emt 0:00:07][%cal Bb7b5,Bb5b4][%mdl 32]} 5. Nbd2 {[%emt 0:00:25]} Bb7 {[%emt 0:00:16]} 6. O-O {[%emt 0:00:07]} Be7 {[%emt 0:00:12]} 7. c3 {[%emt 0:00:07]} a5 {[%emt 0:00:05]} 8. a4 {[%emt 0:01:01] White has an edge.} b4 {[%emt 0:01:28]} 9. Ne5 {[%emt 0:01:26]} O-O {[%emt 0:01:46]} 10. Nb3 {[%emt 0:03:40]} Nbd7 {[%emt 0:10:58]} 11. Nd3 {[%emt 0:01:33]} bxc3 {[%emt 0:04:23]} 12. bxc3 {[%emt 0:00:07]} Ne4 {[%emt 0:00:07]} 13. Qc2 {[%emt 0:07:06]} Nd6 {[%emt 0:04:27]} 14. Ndc5 {[%emt 0:04:06]} Nxc5 {[%emt 0:04:44]} 15. Nxc5 {[%emt 0:01:11]} Bc6 {[%emt 0:00:34]} 16. e4 {[%emt 0:03:38]} Nxe4 {[%emt 0:09:51]} 17. Nxe4 {[%emt 0:00:06]} dxe4 {[%emt 0:00:02]} 18. Bxe4 {[%emt 0:00:13]} Bxe4 {[%emt 0:00:06]} 19. Qxe4 {[%emt 0:00:04]} c5 {[%emt 0:00:14]} 20. Ba3 {[%emt 0:00:58]} cxd4 {[%emt 0:00:37]} 21. Bxe7 {[%emt 0:00:33]} Qxe7 {[%emt 0:00:04]} 22. cxd4 {[%emt 0:00:07]} Rfd8 {[%emt 0:01:26]} 23. Rfb1 {[%emt 0:08:53] Against Qb4} Qd6 {[%emt 0:02:50]} 24. Rd1 {[%emt 0:00:52]} Qb4 {[%emt 0:07:44]} 25. Qc6 {[%emt 0:02:46]} Rac8 $1 {[%emt 0:00:39]} 26. Qb5 {[%emt 0:01:00]} Rb8 {[%emt 0:09:37]} 27. Qc5 {[%emt 0:02:24]} Rd5 {[%emt 0:02:28]} (27... g6 $17 28. Rac1 Rd5 (28... Qxa4 29. Ra1 $15)) 28. Qc7 {[%emt 0:02:34] Black converts the advantage convincingly.} (28. Qxb4 $11 {remains equal.} Rxb4 29. Rab1) 28... Rbd8 {[%emt 0:01:24][%cal Oh7h5]} (28... Rxd4 $2 {is the wrong capture.} 29. Rxd4 Qf8 30. Rad1 $18 (30. Qxa5 h6 $18)) 29. Qa7 {[%emt 0:02:56]} (29. Qc2 $142) 29... h6 {[%emt 0:00:59][%cal Od5d7]} 30. Qa6 {[%emt 0:03:28]} (30. Qc7 $17 {was worth a try.}) 30... Rxd4 $19 {[%emt 0:04:42]} 31. Rdb1 {[%emt 0:00:32]} Qc5 {[%emt 0:01:01] Black has more active pieces.} 32. Rc1 {[%emt 0:00:09]} Qf5 {[%emt 0:00:54]} 33. Rc8 {[%emt 0:01:56]} Kh7 $40 {[%emt 0:01:25][%mdl 128] Black wants a kill.} 34. Rxd8 {[%emt 0:00:06]} Rxd8 {[%emt 0:00:04][%mdl 4096] Endgame. KQR-KQR} 35. Qb7 {[%emt 0:00:30]} Rd2 {[%emt 0:00:49]} 36. Qb6 {[%emt 0:00:32]} Qc2 {[%emt 0:02:27] [#] Strongly threatening ...Rd1+.} 37. Kg2 {[%emt 0:01:44]} Qe4+ {[%emt 0:01:34]} 38. Kg1 {[%emt 0:00:15]} Qd4 {[%emt 0:03:41]} 39. Qb1+ {[%emt 0:00:48]} (39. Qxd4 $19 Rxd4 40. Kh1) 39... f5 {[%emt 0:00:58]} 40. Qe1 {[%emt 0:00:16] [#]} Rxf2 $3 {[%emt 0:00:10][%mdl 512]} 41. Qxf2 {[%emt 0:00:49]} Qxa1+ {[%emt 0:00:06] KQ-KQ} 42. Kg2 {[%emt 0:00:06]} Qxa4 {[%emt 0:00:08] ( -> ...Qe4+)} 43. h4 {[%emt 0:00:44]} Qe4+ {[%emt 0:00:59]} 44. Kh2 {[%emt 0:00:09]} a4 {[%emt 0:00:20]} 45. Qf1 {[%emt 0:00:23] Dodges Qb1} a3 {[%emt 0:00:35] Black mates.} 46. Qa1 {[%emt 0:00:20]} Qe2+ {[%emt 0:00:43]} 47. Kh3 {[%emt 0:00:05]} a2 {[%emt 0:00:23]} 48. Qc3 {[%emt 0:00:16]} Qf1+ {[%emt 0:00:06] Weighted Error Value: White=0.54/Black=0.08 (flawless) .  Mistake:       	White=4     	Black=1      Inaccurate:     	White=1     	Black=1      OK:         	White=5     	Black=11     Best:        	White=2     	Black=3      Strong:       	---       	Black=1} 0-1

[Event "Romanian-ch Youth Girls U20 2024"]
[Site "Eforie Nord"]
[Date "2024.04.18"]
[Round "7.2"]
[White "Anghel, Maria"]
[Black "Trifoi, Mihaela-Ioana"]
[Result "0-1"]
[ECO "D35"]
[WhiteElo "1877"]
[BlackElo "2011"]
[Annotator "TA"]
[PlyCount "82"]
[EventDate "2024.04.10"]
[EventType "swiss"]
[EventCountry "ROU"]
[SourceTitle "playchess.com"]
[Source "ChessBase"]
[SourceQuality "1"]
[TimeControl "5400+30"]

{[%evp 15,82,18,19,19,24,7,58,53,48,60,54,50,50,8,48,43,70,40,49,29,41,25,37,35,42,15,46,46,51,48,49,35,42,44,74,78,90,54,138,118,154,135,254,259,258,153,161,0,0,-190,-138,-316,-320,-592,-574,-606,-605,-609,-556,-1466,-1381,-29990,-29986,-29986,-29987,-29987,-29988,-29988,-29989]} 1. d4 {[%emt 0:00:03]} d5 {[%emt 0:02:37]} 2. c4 {[%emt 0:00:07]} e6 {[%emt 0:00:04]} 3. Nc3 {[%emt 0:00:08]} Nf6 {[%emt 0:00:07]} 4. cxd5 {[%emt 0:00:13]} exd5 {[%emt 0:01:42]} 5. Bg5 {[%emt 0:00:12]} Be7 {[%emt 0:00:13]} 6. e3 {[%emt 0:00:07]} h6 {[%emt 0:01:43]} 7. Bh4 {[%emt 0:00:08]} O-O {[%emt 0:00:05]} 8. Bd3 {[%emt 0:00:04]} Re8 {[%emt 0:00:48]} 9. Nge2 {[%emt 0:00:41]} c6 {[%emt 0:00:22]} 10. f3 {[%emt 0:00:34]} Ne4 {[%emt 0:01:06]} 11. Bxe7 $14 {[%emt 0:10:16] White is slightly better.} Nxc3 {[%emt 0:00:06]} 12. Bxd8 {[%emt 0:10:39] A strong pair of Bishops.} ({Much weaker is} 12. Nxc3 Qxe7 13. Qe2 Qxe3 $17) 12... Nxd1 {[%emt 0:00:41]} 13. Rxd1 {[%emt 0:00:27]} Rxd8 {[%emt 0:00:03]} 14. b4 {[%emt 0:01:58]} Nd7 {[%emt 0:00:27]} 15. Rc1 {[%emt 0:03:05]} Nf6 {[%emt 0:02:22]} 16. a4 {[%emt 0:03:26]} Bd7 {[%emt 0:01:43]} 17. Kf2 {[%emt 0:00:43]} a6 {[%emt 0:01:56]} 18. a5 {[%emt 0:03:28]} Re8 {[%emt 0:01:22]} 19. Nc3 {[%emt 0:00:20][%cal Be2c3,Bc3a4,Ba4c5][%mdl 32]} Re7 {[%emt 0:00:13]} 20. Na4 {[%emt 0:00:54]} Rd8 {[%emt 0:01:46]} 21. Nc5 {[%emt 0:01:42]} Bc8 {[%emt 0:00:04]} 22. g4 {[%emt 0:02:19]} Ne8 {[%emt 0:00:57]} 23. h4 {[%emt 0:02:55]} Nd6 {[%emt 0:00:16][%cal Oh6h5]} 24. Rhg1 {[%emt 0:03:23]} f5 {[%emt 0:05:53]} 25. g5 {[%emt 0:01:18]} hxg5 {[%emt 0:00:28]} 26. Rxg5 {[%emt 0:01:45]} Rde8 {[%emt 0:00:45]} (26... f4 $14) 27. Rcg1 {[%emt 0:02:51]} Kh8 {[%emt 0:06:38]} 28. Rg6 {[%emt 0:02:50]} Nb5 {[%emt 0:03:08]} (28... Rd8 $16 29. h5 f4) 29. Bxb5 $18 {[%emt 0:11:57]} axb5 {[%emt 0:00:13] [#]} 30. a6 {[%emt 0:02:21]} bxa6 $16 {[%emt 0:00:09] [#]} 31. Rxc6 $2 {[%emt 0:00:08]} ({White has to play} 31. Nd3 $1 $18) 31... Rxe3 $11 {[%emt 0:00:15]} 32. Ne4 $2 {[%emt 0:07:21]} f4 $19 {[%emt 0:01:34]} 33. Nc3 {[%emt 0:04:17] [#] Now White is beyond hope.} (33. Ng5 $17 {is a better defense.} Re2+ 34. Kf1) 33... a5 $1 {[%emt 0:11:00]} 34. Rc1 $2 {[%emt 0:07:41]} ({Of course not} 34. bxa5 b4 35. Rc1 bxc3 $19 (35... Rxc3 $2 36. R1xc3 bxc3 37. Rxc3 $19)) (34. Rb1 Bf5 35. Rb2) 34... axb4 {[%emt 0:01:32]} 35. Nxd5 {[%emt 0:00:32]} Re2+ {[%emt 0:00:07]} 36. Kg1 {[%emt 0:00:12]} Bb7 {[%emt 0:00:15]} 37. Rd6 {[%emt 0:01:21]} b3 {[%emt 0:01:09] ( -> ...b2)} 38. Rc7 {[%emt 0:02:42]} Bxd5 {[%emt 0:00:36] Black mates.} 39. Rxd5 {[%emt 0:00:32]} b2 {[%emt 0:00:06]} 40. Rh5+ {[%emt 0:01:50]} Kg8 {[%emt 0:00:08]} 41. Rxb5 {[%emt 0:00:22]} Re1+ {[%emt 0:00:23] Weighted Error Value: White=0.83/Black=0.17 (very precise) .  Loses game:     	White=2     	---        Missed win:     	White=1     	---        Mistake:       	White=2     	Black=3      Inaccurate:     	White=5     	Black=5      OK:         	White=4     	Black=7      Best:        	White=4     	Black=4      Strong:       	---       	Black=1} 0-1